Cogmind - Beta 10.1 @@@ ROGUE MODE // 2020.09.23 @ 15:57:49 Player: AM Result: Destroyed by G-47 Trooper with Particle Gun Performance ------------- Evolutions (1) 500 Regions Visited (3) 600 Robots Destroyed (12) 60 Value Destroyed (386) 386 Prototype IDs (2) 40 Alien Tech Used (0) 0 Bonus (200) 200 TOTAL SCORE: 1786 Bonus ------- Pacifist 200 Cogmind --------- Core Integrity 0/400 Matter 300/300 Energy 500/500 System Corruption 0% Temperature Cool (15) Movement Core (400) Ox7 Location -9/Materials Parts ------- > --- POWER (1) -------- (None) > --- PROPULSION (4) --- (None) > --- UTILITY (2) ------ Large Storage Unit High-capacity Battery > --- WEAPON (2) ------- Faulty Improved Assault Rifle > --- INVENTORY (10) --- Medium Matter Pod (100) Peak State ------------ > --- POWER ------------ Ion Engine > --- PROPULSION ------- Aluminum Leg Aluminum Leg Aluminum Leg > --- UTILITY ---------- Small Storage Unit ECM Suite > --- WEAPON ----------- EM Shotgun EM Shotgun > --- INVENTORY -------- Light Ion Engine Medium Matter Pod EM Shotgun Assault Rifle [Rating: 10] Favorites ----------- Power Ion Engine Engine Ion Engine Propulsion Aluminum Leg Treads Light Treads Leg Aluminum Leg Utility Small Storage Unit Device ECM Suite Storage Small Storage Unit Weapon EM Shotgun Energy Gun EM Shotgun Ballistic Gun Assault Rifle Build | -11 -10 -10 -9 ------- Run | Scr Mat Min Mat Slots Evolved 2 | . . . 2 Power . | . . . . Propulsion 2 | . . . 2 Utility . | . . . . Weapon . | . . . . Parts Attached 22 | 4 2 . 16 Power 2 | . 1 . 1 Engine 2 | . 1 . 1 Core . | . . . . Reactor . | . . . . Propulsion 7 | 2 . . 5 Treads 1 | . . . 1 Leg 6 | 2 . . 4 Wheel . | . . . . Hover . | . . . . Flight . | . . . . Utility 5 | . 1 . 4 Device 2 | . . . 2 Storage 3 | . 1 . 2 Processor . | . . . . Hackware . | . . . . Protection . | . . . . Artifact . | . . . . Weapon 8 | 2 . . 6 Energy Gun 4 | . . . 4 Energy Cannon . | . . . . Ballistic Gun 4 | 2 . . 2 Ballistic Cannon . | . . . . Launcher . | . . . . Special Weapon . | . . . . Impact Weapon . | . . . . Slashing Weapon . | . . . . Piercing Weapon . | . . . . Special Melee Weapon . | . . . . Unidentified Prototypes 2 | . . . 2 Parts Lost 16 | . . . 16 Power 2 | . . . 2 Propulsion 7 | . . . 7 Utility 2 | . . . 2 Weapon 5 | . . . 5 Highest Loss Streak 12 | . . . 12 Average Slot Usage (%) 73 | . 85 85 70 Engine 10 | . 14 14 8 Treads 1 | . . . 1 Leg 24 | . 28 28 23 Device 5 | . . . 6 Storage 13 | . 14 14 13 Energy Gun 9 | . . . 12 Ballistic Gun 10 | . 28 28 5 Naked Turns . | . . . . Heaviest Build 31 | 3 12 12 31 Greatest Support 40 | 20 20 20 40 Greatest Overweight (x) 8 | . . . 8 Average Overweight (x) . | . . . . Largest Inventory Capacity 10 | 4 6 6 10 Average Capacity 7 | 4 6 6 8 Most Carried 6 | 3 3 3 6 Average Carried 3 | 1 2 3 3 Final Capacity 10 | 4 6 6 10 Final Carried 3 | 3 3 3 1 Class Distribution -------------------- 100% | Mutant Dominant Class ---------------- Mutant | -10/Materials Mutant | -10/Mines Mutant | -9/Materials Resources | -11 -10 -10 -9 ----------- Run | Scr Mat Min Mat Matter Collected 517 | 197 . . 320 Remotely . | . . . . Salvage Created 545 | . . . 545 Parts 33 | . . . 33 Haulers Intercepted 1 | . . . 1 Recyclers Shooed . | . . . . Parts Field Recycled . | . . . . Retrieved Matter . | . . . . Parts Self-Destructed . | . . . . Prevented . | . . . . Kills | -11 -10 -10 -9 ------- Run | Scr Mat Min Mat Combat Hostiles Destroyed 9 | . . . 9 Guns 8 | . . . 8 Classes Destroyed 4 | . . . 4 Hauler 1 | . . . 1 Watcher 2 | . . . 2 Grunt 6 | . . . 6 Sentry 3 | . . . 3 Best Kill Streak 3 | . . . 3 Combat Bots Only 2 | . . . 2 Max Kills in Single Turn 1 | . . . 1 Gunslinging . | . . . . Exploded . | . . . . Melee . | . . . . Uniques/NPCs Destroyed . | . . . . Combat | -11 -10 -10 -9 -------- Run | Scr Mat Min Mat Damage Taken 1676 | . 74 . 1602 Core 406 | . 6 . 400 Absorbed by Shields . | . . . . Core Remaining (%) 98 | 100 . 97 . Volleys Fired 45 | . 2 3 40 Largest 2 | . 2 2 2 Hottest 90 | . 40 40 90 Shots Fired 68 | . 4 6 58 Gun 68 | . 4 6 58 Cannon . | . . . . Launcher . | . . . . Special . | . . . . Kinetic 21 | . 4 6 11 Thermal . | . . . . Explosive . | . . . . Electromagnetic 47 | . . . 47 Robot Hit Streak 10 | . . 3 10 Robot Miss Streak 5 | . 4 5 3 Penetration Max . | . . . . Secondary Targets . | . . . . Shots Hit Robots 50 | . . 4 46 Core Hits 25 | . . 2 23 Critical Hits 1 | . . . 1 Critical Kills 1 | . . . 1 Critical Parts Destroyed . | . . . . Melee Attacks . | . . . . Impact . | . . . . Slashing . | . . . . Piercing . | . . . . Sneak Attacks . | . . . . Combat Hostiles . | . . . . Follow-up Attacks . | . . . . Damage Inflicted 856 | . . 42 814 Guns 772 | . . 42 730 Cannons . | . . . . Explosions 78 | . . . 78 Melee . | . . . . Ramming 6 | . . . 6 Kinetic 181 | . . 42 139 Thermal 78 | . . . 78 Explosive . | . . . . Electromagnetic 591 | . . . 591 Impact . | . . . . Slashing . | . . . . Piercing . | . . . . Highest Corruption . | . . . . Average Corruption . | . . . . Corruption Purged . | . . . . Overload Shots . | . . . . Overflow Damage . | . . . . Projectiles . | . . . . Explosions . | . . . . Melee . | . . . . Knockbacks . | . . . . Impact . | . . . . Kinetic . | . . . . Secondary . | . . . . Self-Inflicted Damage . | . . . . Shots . | . . . . Rammed 6 | . . . 6 Targets Rammed 7 | . . . 7 Kicked 1 | . . . 1 Crushed . | . . . . Highest Temperature 436 | . . . 436 Average Temperature 91 | . . . 91 Received Heat Transfer 723 | . . . 723 Effects 1 | . . . 1 Matter Decay 1 | . . . 1 Siege Activations . | . . . . Robots Corrupted 1 | . . . 1 Combat Hostiles 1 | . . . 1 Parts Fried 3 | . . . 3 Impact Corruptions . | . . . . Robots Melted . | . . . . Combat Hostiles . | . . . . Parts Melted . | . . . . Heat Transferred 150 | . . . 150 Parts Sabotaged . | . . . . Parts Stolen . | . . . . Parts Stripped . | . . . . Power Chain Reactions 1 | . . . 1 Missiles Intercepted . | . . . . Alert | -11 -10 -10 -9 ------- Run | Scr Mat Min Mat Peak Influence 227 | . 15 5 227 Initial 5 | . . 5 1 Average 75 | . 3 5 103 Maximum Alert Level 1 | . . . 1 Low Security (%) 92 | 100 100 100 89 Level 1 7 | . . . 10 Level 2 . | . . . . Level 3 . | . . . . Level 4 . | . . . . Level 5 . | . . . . High Security . | . . . . Max Security . | . . . . Squads Dispatched 3 | . . . 3 Investigation 1 | . . . 1 Extermination . | . . . . Reinforcement 2 | . . . 2 Assault . | . . . . Garrison . | . . . . Intercept . | . . . . Construction Impeded 1 | . . . 1 Haulers Reinforced . | . . . . Stealth | -11 -10 -10 -9 --------- Run | Scr Mat Min Mat Distress Signals 3 | . . . 3 Communications Jammed . | . . . . Distress Signals . | . . . . Times Spotted 39 | . 5 . 34 Peak Tracking Total 8 | . 5 . 8 Tactical Retreats 9 | . . . 9 Traps | -11 -10 -10 -9 ------- Run | Scr Mat Min Mat Traps Triggered . | . . . . Indirectly . | . . . . Trap Hack Attempts . | . . . . Triggered . | . . . . Disarmed . | . . . . Reprogrammed . | . . . . Reused . | . . . . Traps Extracted . | . . . . Installed . | . . . . Triggered . | . . . . Machines | -11 -10 -10 -9 ---------- Run | Scr Mat Min Mat Machines Disabled . | . . . . Max in Single Turn . | . . . . Machines Sabotaged . | . . . . Garrisons Compromised . | . . . . Overloaded Fab Kills . | . . . . Fab Network Shutdowns . | . . . . Hacking | -11 -10 -10 -9 --------- Run | Scr Mat Min Mat Machines Accessed . | . . . . Terminals . | . . . . Fabricators . | . . . . Repair Stations . | . . . . Recycling Units . | . . . . Scanalyzers . | . . . . Garrison Access . | . . . . Total Hacks . | . . . . Successful . | . . . . Failed . | . . . . Catastrophic . | . . . . Database Lockouts . | . . . . Manual . | . . . . Terminals . | . . . . Fabricators . | . . . . Repair Stations . | . . . . Recycling Units . | . . . . Scanalyzers . | . . . . Garrison Access . | . . . . Terminal Hacks . | . . . . Fabricator Hacks . | . . . . Repair Station Hacks . | . . . . Recycling Unit Hacks . | . . . . Scanalyzer . | . . . . Garrison Access Hacks . | . . . . Unauthorized Hacks . | . . . . Terminals . | . . . . Fabricators . | . . . . Repair Stations . | . . . . Recycling Units . | . . . . Scanalyzers . | . . . . Garrison Access . | . . . . Data Cores Recovered . | . . . . Used . | . . . . Hacking Detections . | . . . . Full Trace Events . | . . . . Feedback Events . | . . . . Feedback Blocked . | . . . . Robot Schematics Acquired . | . . . . Robots Built . | . . . . Matter . | . . . . Time . | . . . . Total Robot Build Rating . | . . . . Part Schematics Acquired . | . . . . Parts Built . | . . . . Matter . | . . . . Time . | . . . . Total Part Build Rating . | . . . . Parts Repaired . | . . . . Time . | . . . . Parts Recycled . | . . . . Recycled Matter . | . . . . Retrieved Matter . | . . . . Retrieved Components . | . . . . Parts Scanalyzed . | . . . . Part Schematics Acquired . | . . . . Parts Damaged . | . . . . Bothacking | -11 -10 -10 -9 ------------ Run | Scr Mat Min Mat Used RIF Installer . | . . . . Robots Hacked . | . . . . Non-combat . | . . . . Combat . | . . . . Robot Hacks Applied . | . . . . Relay Couplers Released . | . . . . Robots Rewired . | . . . . Allies Hacked . | . . . . Hacks Repelled . | . . . . Allies | -11 -10 -10 -9 -------- Run | Scr Mat Min Mat Total Allies . | . . . . Largest Group . | . . . . Highest-Rated Group . | . . . . Highest-Rated Ally . | . . . . Total Orders . | . . . . Ally Attacks . | . . . . Total Damage . | . . . . Kills . | . . . . Allies Corrupted . | . . . . Allies Melted . | . . . . Intel | -11 -10 -10 -9 ------- Run | Scr Mat Min Mat Robot Analysis Total . | . . . . Derelict Logs Recovered . | . . . . Drone Launches . | . . . . Drone Recoveries . | . . . . Exploration | -11 -10 -10 -9 ------------- Run | Scr Mat Min Mat Turns Passed 590 | 45 92 29 424 Spaces Moved 251 | 34 64 18 135 Core 12 | 9 . . 3 Treads 20 | . . . 20 Legs 219 | 25 64 18 112 Wheels . | . . . . Hover . | . . . . Flight . | . . . . Fastest Speed 50 | 50 120 120 120 Average Speed 127 | 101 120 120 139 Slowest Speed 450 | 120 120 120 450 Overloaded Moves . | . . . . Propulsion Burnouts . | . . . . Robots Hopped . | . . . . Cave-ins Triggered . | . . . . Exploration Rate (%) 11 | 3 19 9 16 Regions Visited 3 Branch Regions 1 Pre-discovered Areas . | . . . . Known Exits Taken . | . . . . Unknown Exits Taken 3 | 1 1 1 . Scrap Searched . | . . . . Spaces Dug . | . . . . Terrain Destroyed 4 | . . . 4 Melee . | . . . . Projectile . | . . . . AOE 4 | . . . 4 Terrain Rammed . | . . . . Walls Destroyed . | . . . . Machines Disabled . | . . . . Actions | -11 -10 -10 -9 --------- Run | Scr Mat Min Mat Total 446 | 44 75 20 307 Wait 93 | . 6 . 87 Move 248 | 33 63 17 135 Hop . | . . . . Pick Up 25 | 7 2 . 16 Fast Attach . | . . . . Attach 21 | 4 2 . 15 Detach 1 | . . . 1 Swap 1 | . . . 1 Drop 5 | . . . 5 Fire 45 | . 2 3 40 Melee . | . . . . Ram 2 | . . . 2 Kick 1 | . . . 1 Crush 4 | . . . 4 Escape Stasis . | . . . . Rewire . | . . . . Trap . | . . . . Miscellaneous . | . . . . Route ------- -11/Scrapyard -10/Materials -10/Mines -9/Materials History --------- Turn | Location | Event 4 | -11/Scrapyard | Discovered new exit (range 15) 46 | -11/Scrapyard | Entered Materials 130 | -10/Materials | Discovered new exit (range 7) 138 | -10/Materials | Entered Mines 153 | -10/Mines | Discovered new exit (range 5) 167 | -10/Mines | Entered Materials 167 | -9/Materials | Evolved 2 slots: Propulsion x2 312 | -9/Materials | Build established: Mutant 413 | -9/Materials | Lost 3 parts (1n1u1w) 509 | -9/Materials | Core integrity fell below 50% 529 | -9/Materials | Core integrity fell below 20% 557 | -9/Materials | Lost 12 parts (2p5n1u4w) 591 | -9/Materials | Destroyed by G-47 Trooper with Particle Gun Last Messages --------------- 00540_ U-05 Engineer lays Concrete. 00540_ U-05 Engineer builds a Wall. 00541_ U-05 Engineer lays Concrete. 00541_ K-01 Serf cleans the Electrolysis Chamber. 00541_ U-05 Engineer lays Concrete. 00542_ U-05 Engineer builds a Wall. 00543_ K-01 Serf collects debris. 00543_ U-05 Engineer lays Concrete. 00545_ R-06 Scavenger collects Tractor Beam. 00546_ U-05 Engineer lays Concrete. 00546_ K-01 Serf collects debris. 00546_ U-05 Engineer lays Concrete. 00548_ R-06 Scavenger collects Beam Rifle. 00548_ U-05 Engineer lays Concrete. 00550_ K-01 Serf collects debris. 00550_ U-05 Engineer lays Concrete. 00553_ K-01 Serf collects debris. 00577_ Slammed into G-34 Mercenary. 00583_ Lgt. Treads destroyed. 00584_ Slammed into G-34 Mercenary. Map ----- +----------------------------------------------------+ | ?????????????????????????????????????????????????? | | ?????????????????????????????????????????????????? | | ?????????????????????????????????????????????????? | | ?????????????????????????????????????????????????? | | ?????????????????????????????????????????????????? | | ?????????????????????????????????????????????????? | | ?????????????????????????????????????????????????? | | ?????????????????????????????????????????????????? | | ?????????????????????????????????????????????????? | | ?????????????????????????????????????????????????? | | ?????????????????????????????????????????????????? | | ?????????????????????????????????????????????????? | | ?????????????????????????????????????????????????? | | ?????????????????????????????????????????????????? | | ?????????????????????????????????????????????????? | | ?????????????????????????????????????????????????? | | ?????????????????????????????????????????????????? | | ?????????????????????????????????????????????????? | | ?????????????????????????????????????????????????? | | ????????????????????###########??????????????????? | | ????????????????????# #??????????????????? | | ????????????????????# #??????????????????? | | ????????????????????# g #??????????????????? | | ????????????????????#g""" """ #??????????????????? | | ????????????????????# """%""" #??????????????????? | | ????????????????????# """@""" #??????????????????? | | ????????????????????# """g""" #??????? ##???????? | | ????????????????????# #????? ###?????? | | ??????????????#+#########+########## ?????? | | ??????????? T ????? | | ??????????? ????? | | ??????????? #???????? | | ???????????? #######+######## """ """ #???????? | | ????????????????????????????# """ """ #???????? | | ????????????????????????????# """ """ #???????? | | ????????????????????????????# #???????? | | ????????######??????????????# #???????? | | ???????##! !!##???????????### " """ #???????? | | #??????#! !#???????????# # """ #???????? | | # ????#! !#???????????###% """ #???????? | | ### ##?????????## # #???????? | | % ##############%% #???????? | | % == "" #???????? | | = #############%%[ """ #???????? | | ####### #?????????## [[ "" #???????? | | #####??????#!%*#??????????# = #???????? | | ???????????# = #??????????# [ #???????? | | ????######## #??????????### ??????? | | ????# # #????????????# ##### ?????? | | ????# """ # +????????????# #???? ?????? | +----------------------------------------------------+ Best States ------------- Heat Dissipation 38 Energy Generation 10 Energy Capacity 650 Matter Stores 300 Matter Capacity 300 Sight Range 16 Terrain Scan Density 10 ECM Strength 1 Evasion (%) 40 Recoil Reduction 1 Item Schematics ----------------- None Robot Schematics ------------------ None Fabricated ------------ Nothing Alien Tech Used ----------------- None Achievements -------------- None Challenges ------------ None Game ------ Seed PrecisionTransportRailgun Manual? 0 Play Time 00:10:31 Cumulative 5.2 hours Start 2020.09.23 @ 15:49:44 End 2020.09.23 @ 15:57:49 Sessions 1 Manual Loads 0 Difficulty Rogue Special Mode None Game No. 22 Rogue 22 Adventurer 0 Explorer 0 Win Type - Total 0 Types 0/0/0/0/0/0/0/0/0 Lore% 2 Gallery% 12 Achievement% 9 Wizard Run 0 Options --------- ASCII 0 Keyboard 0 Movement Mouse Keybinds 0 Fullscreen 2 Font 18/X11Bold Map View 76x50 Tactical HUD 1 Map Filters NONE Filters NONE Steam 1 RUN: 1eac3f23-7cee-4723-9461-9f44a1433ecf